bitfinex-derivatives/quotes_BNBF0:USTF0_20250509
["timestamp","ask_amount","ask_price","bid_price","bid_amount"]
[1746802524250,0.2632196,635.06,634.22,0.31534798]
[1746802524551,0.2632196,635.05,634.22,0.31534798]
[1746802525049,0.53751504,635.04,634.22,0.31534798]
[1746802525350,0.2632196,635.03,634.22,0.31534798]
[1746802525651,0.2632196,635.02,634.22,0.31534798]
[1746802526253,0.2632196,635.01,634.22,0.31534798]
[1746802526651,0.2632196,635.0,634.23,0.501]
[1746802526948,0.2632196,634.99,634.23,0.501]
[1746802527246,0.2632196,634.98,634.23,0.501]
[1746802527553,0.2632196,634.97,634.23,0.501]
[1746802528156,0.2632196,634.96,634.23,0.501]
[1746802528451,0.2632196,634.95,634.23,0.501]
[1746802528853,0.2632196,634.94,634.23,0.501]
[1746802529254,0.2632196,634.93,634.23,0.501]
[1746802529852,0.2632196,634.92,634.23,0.501]
[1746802530160,0.2632196,634.91,634.23,0.501]
[1746802530456,0.2632196,634.9,634.23,0.501]
[1746802530850,0.2632196,634.89,634.23,0.501]
[1746802531055,0.2632196,634.88,634.23,0.501]
[1746802531454,0.2632196,635.03,634.23,0.501]
[1746802531656,0.363,634.87,634.23,0.501]
[1746802532452,0.2632196,634.86,634.23,0.501]
[1746802534160,0.27429004,634.85,634.24,0.31533804]
[1746802534766,0.2632196,634.84,634.24,0.31533804]
[1746802537059,0.27428247,634.83,634.24,0.31533804]
[1746802537260,0.2632196,634.82,634.24,0.31533804]
[1746802539367,0.2632196,634.86,634.24,0.31533804]
[1746802543774,0.955,634.87,634.24,0.31533804]
[1746802544172,0.2626086,634.86,634.24,0.31533804]
[1746802546274,0.53687594,634.86,634.24,0.31533804]
[1746802546872,0.2626086,634.85,634.24,0.31533804]
[1746802548371,0.2626086,634.86,634.24,0.31533804]
[1746802549874,0.2626086,634.86,634.25,0.39]
[1746802550074,0.2626086,634.86,634.26,0.31532809]
[1746802556186,0.955,634.87,634.26,0.31532809]
[1746802557487,0.26249815,634.86,634.26,0.31532809]
[1746802560488,0.26249815,634.86,634.27,0.416]
[1746802562892,1.96772662,635.89,634.27,0.874]
[1746802563190,0.26249815,635.88,634.27,0.874]
[1746802563490,0.26249815,635.87,634.27,0.874]
[1746802564093,1.96772662,635.85,634.27,0.874]
[1746802564489,0.26249815,635.84,634.27,0.874]
[1746802564894,0.57704763,635.83,634.27,0.874]
[1746802565194,1.06904763,635.83,634.27,0.874]
[1746802565394,0.26249815,635.82,634.27,0.874]
[1746802565694,0.26249815,635.81,634.27,0.874]
[1746802566090,0.26249815,635.8,634.27,0.874]
[1746802566395,1.96772662,635.45,634.27,0.874]
[1746802566690,0.26249815,635.44,634.27,0.874]
[1746802567493,0.26249815,635.43,634.27,0.874]
[1746802567791,0.26249815,635.43,634.29,0.31531318]
[1746802567992,0.26249815,635.42,634.29,0.31531318]
[1746802568192,0.26249815,635.41,634.29,0.31531318]
[1746802568797,0.26249815,635.4,634.29,0.31531318]
[1746802569098,0.26249815,635.39,634.29,0.31531318]
[1746802569797,0.26249815,635.38,634.29,0.31531318]
[1746802570093,0.26249815,635.37,634.29,0.31531318]
[1746802570399,1.96772662,635.51,634.29,0.31531318]
[1746802570896,0.26247541,635.5,634.29,0.31531318]
[1746802571194,0.26247541,635.49,634.29,0.31531318]
[1746802571394,0.26247541,635.48,634.29,0.31531318]
[1746802571698,0.26247541,635.47,634.29,0.31531318]
[1746802572193,0.26247541,635.46,634.29,0.31531318]
[1746802572498,0.26247541,635.45,634.29,0.31531318]
[1746802572899,0.26247541,635.44,634.29,0.31531318]
[1746802573195,0.26247541,635.43,634.29,0.31531318]
[1746802573498,0.26247541,635.42,634.29,0.31531318]
[1746802573897,0.26247541,635.41,634.29,0.31531318]
[1746802574199,1.96772662,635.48,634.29,0.31531318]
[1746802575102,0.26252918,635.47,634.29,0.31531318]
[1746802575301,1.96772662,635.39,634.29,0.31531318]
[1746802575697,0.26252918,635.38,634.29,0.31531318]
[1746802577901,0.26252918,635.62,634.29,0.31531318]
[1746802578202,0.26252918,635.61,634.29,0.31531318]
[1746802578499,0.26252918,635.6,634.29,0.31531318]
[1746802578901,0.26252918,635.59,634.29,0.31531318]
[1746802579204,0.26252918,635.58,634.29,0.31531318]
[1746802579598,0.26252918,635.57,634.29,0.31531318]
[1746802579904,0.26252918,635.56,634.29,0.31531318]
[1746802580201,1.96772662,635.58,634.29,0.31531318]
[1746802580202,0.26252918,635.55,634.29,0.31531318]
[1746802580502,0.26252918,635.54,634.29,0.31531318]
[1746802580902,0.53663558,635.53,634.29,0.31531318]
[1746802581102,0.2741064,635.53,634.29,0.31531318]
[1746802581504,0.2626854,635.52,634.29,0.31531318]
[1746802581804,0.2626854,635.51,634.29,0.31531318]
[1746802582102,0.2741064,635.51,634.29,0.31531318]
[1746802582402,0.2626905,635.5,634.29,0.31531318]
[1746802582702,0.2626905,635.49,634.29,0.31531318]
[1746802583202,0.2626905,635.48,634.29,0.31531318]
[1746802583503,0.2626905,635.5,634.29,0.31531318]
[1746802585205,0.2626905,635.68,634.29,0.31531318]
[1746802585398,0.27410532,635.49,634.29,0.31531318]
[1746802585597,0.2626905,635.48,634.29,0.31531318]
[1746802586099,0.27409021,635.48,634.29,0.31531318]
[1746802586401,0.2626905,635.47,634.29,0.31531318]
[1746802588106,0.27410316,635.46,634.29,0.31531318]
[1746802588605,0.2626905,635.45,634.29,0.31531318]
[1746802591301,0.27411395,635.44,634.29,0.31531318]
[1746802591800,0.2626905,635.43,634.29,0.31531318]
[1746802592201,0.2626905,635.42,634.29,0.31531318]
[1746802592603,0.365,635.41,634.29,0.31531318]
[1746802592807,0.26265174,635.4,634.29,0.31531318]
[1746802593209,0.26265174,635.39,634.29,0.31531318]
[1746802593502,0.26265174,635.38,634.29,0.31531318]
[1746802594108,0.26265174,635.4,634.29,0.31531318]
[1746802594305,0.53686289,635.37,634.29,0.31531318]
[1746802594610,0.26265174,635.36,634.29,0.31531318]
[1746802597005,0.472,635.35,634.29,0.31531318]
[1746802597209,0.74621115,635.35,634.29,0.31531318]
[1746802598111,0.26265174,635.34,634.29,0.79831318]
[1746802600106,0.27421547,635.33,634.29,0.79831318]
[1746802600511,0.26265174,635.32,634.29,0.79831318]
[1746802601505,0.26265174,635.31,634.29,0.79831318]
[1746802601706,0.26265174,635.31,634.29,1.29331318]
[1746802602211,0.26265174,635.32,634.29,1.29331318]
[1746802602612,0.26265174,635.31,634.29,1.29331318]
[1746802603110,0.27419819,635.3,634.29,1.29331318]
[1746802603310,0.26265174,635.29,634.29,1.29331318]
[1746802606014,0.26265174,635.28,634.29,1.29331318]
[1746802606209,0.26265174,635.27,634.29,1.29331318]
[1746802606614,0.26265174,635.26,634.29,1.29331318]
[1746802607014,0.26265174,635.25,634.29,1.29331318]
[1746802607316,0.26265174,635.24,634.29,1.29331318]
[1746802607817,0.26265174,635.29,634.29,1.29331318]
[1746802609218,0.26265174,635.4,634.29,1.29331318]
[1746802610115,0.2741809,635.39,634.29,1.29331318]
[1746802610716,0.26265174,635.38,634.29,1.29331318]
[1746802611012,0.26265174,635.37,634.29,1.29331318]
[1746802611312,0.26265174,635.38,634.29,1.29331318]
[1746802611616,0.473,635.37,634.29,1.29331318]
[1746802612112,0.26265174,635.36,634.29,1.29331318]
[1746802613219,0.27413987,635.35,634.29,1.29331318]
[1746802613717,0.26265174,635.34,634.29,1.29331318]
[1746802615016,0.26265174,635.33,634.29,1.29331318]
[1746802615316,0.53677649,635.33,634.29,1.29331318]
[1746802615517,0.27412475,635.33,634.29,1.29331318]
[1746802615914,0.26265174,635.32,634.29,1.29331318]
[1746802616717,0.61265174,635.32,634.29,1.29331318]
[1746802617419,0.26265174,635.31,634.29,1.29331318]
[1746802618320,0.27414095,635.3,634.29,1.29331318]
[1746802618820,0.26265174,635.29,634.29,1.29331318]
[1746802620427,0.27414095,635.3,634.29,1.29331318]
[1746802620721,0.26262831,635.29,634.29,1.29331318]
[1746802622917,0.27413015,635.28,634.29,1.29331318]
[1746802623916,0.35,635.32,634.29,1.29331318]
[1746802624120,0.27415174,635.27,634.29,1.29331318]
[1746802624923,0.26255797,635.26,634.29,1.29331318]
[1746802627017,0.26255797,635.31,634.29,1.29331318]
[1746802627324,0.27419063,635.25,634.29,1.29331318]
[1746802627722,0.26255797,635.24,634.29,1.29331318]
[1746802632228,0.558,635.23,634.29,1.29331318]
[1746802632432,0.923,635.23,634.29,1.29331318]
[1746802632732,0.26255797,635.22,634.29,1.29331318]
[1746802633129,0.53673239,635.22,634.29,1.29331318]
[1746802633734,0.26255797,635.21,634.29,1.29331318]
[1746802636437,0.26255797,635.22,634.29,1.29331318]
[1746802637234,0.27415498,635.21,634.29,1.29331318]
[1746802637436,0.26255797,635.2,634.29,1.29331318]
[1746802639134,0.27419387,635.19,634.29,1.29331318]
[1746802640030,0.26255797,635.18,634.29,1.29331318]
[1746802642234,0.26255797,635.18,634.29,0.81031318]
[1746802643535,0.26255797,635.18,634.29,0.31531318]
[1746802645238,0.27418955,635.17,634.29,0.31531318]
[1746802645739,0.26255797,635.16,634.29,0.31531318]
[1746802648238,0.27413555,635.15,634.29,0.31531318]
[1746802648742,0.26255797,635.14,634.29,0.31531318]
[1746802649845,0.27413555,635.15,634.29,0.31531318]
[1746802650245,0.26235136,635.14,634.29,0.31531318]
[1746802651244,0.27412043,635.13,634.29,0.31531318]
[1746802651645,0.26235136,635.12,634.29,0.31531318]
[1746802657352,0.27412043,635.13,634.29,0.31531318]
[1746802657652,0.26236797,635.12,634.29,0.31531318]
[1746802660658,0.27415282,635.16,634.29,0.31531318]
[1746802660957,0.26236797,635.15,634.29,0.31531318]
[1746802663055,0.26236797,635.56,634.29,0.31531318]
[1746802663360,0.27413123,635.26,634.29,0.31531318]
[1746802663660,0.26236797,635.55,634.29,0.31531318]
[1746802663861,0.26236797,635.25,634.29,0.31531318]
[1746802664057,0.26236797,635.55,634.29,0.31531318]
[1746802664461,0.53647113,635.54,634.29,0.31531318]
[1746802664861,0.26236797,635.53,634.29,0.31531318]
[1746802665157,0.26236797,635.52,634.29,0.31531318]
[1746802665662,0.26236797,635.51,634.29,0.31531318]
[1746802666061,0.26236797,635.5,634.29,0.31531318]
[1746802666261,0.53647113,635.5,634.29,0.31531318]
[1746802666658,0.26236797,635.49,634.29,0.31531318]
[1746802666957,0.26236797,635.48,634.29,0.31531318]
[1746802667363,0.26236797,635.47,634.29,0.31531318]
[1746802667658,0.26236797,635.49,634.29,0.31531318]
[1746802669666,0.26236797,635.73,634.29,0.31531318]
[1746802671568,0.27400928,635.74,634.29,0.31531318]
[1746802671868,0.678,635.91,634.29,0.31531318]
[1746802672062,0.26268449,635.73,634.29,0.31531318]
[1746802672767,0.26268449,635.9,634.29,0.31531318]
[1746802673767,0.27397045,635.89,634.29,0.31531318]
[1746802674363,0.26268449,635.88,634.29,0.31531318]
[1746802675173,0.27395751,635.87,634.29,0.31531318]
[1746802675968,0.26268815,635.86,634.29,0.31531318]
[1746802677169,0.26268815,635.86,634.29,0.84031318]
[1746802678366,0.27394241,635.85,634.29,0.84031318]
[1746802678971,0.541,635.84,634.29,0.84031318]
[1746802679365,0.26268815,635.83,634.29,0.84031318]
[1746802681070,0.26268815,635.83,634.3,0.28944734]
[1746802681274,0.27394672,635.82,634.32,0.31529827]
[1746802681874,0.26268815,635.81,634.33,0.28944734]
[1746802682175,0.26268815,635.81,634.32,0.31529827]
[1746802684477,0.26268815,635.83,634.32,0.31529827]
[1746802685378,0.27396505,635.82,634.32,0.31529827]
[1746802685778,0.26268815,635.81,634.32,0.31529827]
[1746802687281,0.27396505,635.8,634.32,0.31529827]
[1746802687879,0.372,635.79,634.32,0.31529827]
[1746802688179,0.2628505,635.78,634.32,0.31529827]
[1746802690380,0.27398231,635.77,634.32,0.31529827]
[1746802690875,0.2628505,635.76,634.32,0.31529827]
[1746802693179,0.372,635.79,634.32,0.31529827]
[1746802693180,0.27398015,635.75,634.32,0.31529827]
[1746802693483,0.2628505,635.74,634.32,0.31529827]
[1746802697581,0.372,635.73,634.32,0.31529827]
[1746802698388,0.26292181,635.72,634.32,0.31529827]
[1746802699389,0.27401467,635.71,634.32,0.31529827]
[1746802700090,0.26292181,635.7,634.32,0.31529827]
[1746802701890,0.89792181,635.7,634.32,0.31529827]
[1746802702192,0.26292181,635.69,634.32,0.31529827]
[1746802702393,0.53693972,635.69,634.32,0.31529827]
[1746802703094,0.26292181,635.68,634.32,0.31529827]
[1746802703494,0.26292181,635.68,634.33,0.522]
[1746802704494,0.26292181,635.68,634.34,0.343]
[1746802704691,0.26292181,635.68,634.36,0.31527839]
[1746802705295,0.27402114,635.67,634.36,0.31527839]
[1746802705691,0.26292181,635.66,634.36,0.31527839]
[1746802708196,0.27401251,635.65,634.36,0.31527839]
[1746802708696,0.26292181,635.64,634.36,0.31527839]
[1746802711296,0.2739931,635.63,634.36,0.31527839]
[1746802711597,0.26292181,635.62,634.36,0.31527839]
[1746802714297,0.27405459,635.61,634.36,0.31527839]
[1746802714698,0.26292181,635.6,634.36,0.31527839]
[1746802717296,0.27402869,635.59,634.36,0.31527839]
[1746802718402,0.26292181,635.58,634.36,0.31527839]
[1746802718902,0.27402869,635.59,634.36,0.31527839]
[1746802719298,0.26286735,635.58,634.36,0.31527839]
[1746802720201,0.2740082,635.57,634.36,0.31527839]
[1746802720397,0.7060082,635.57,634.36,0.31527839]
[1746802720902,0.26286564,635.56,634.36,0.31527839]
[1746802721296,0.7060082,635.57,634.36,0.31527839]
[1746802721703,0.26286411,635.56,634.36,0.31527839]
[1746802727810,0.372,635.55,634.36,0.31527839]
[1746802728211,0.26286411,635.54,634.36,0.31527839]
[1746802733813,0.27405135,635.53,634.36,0.31527839]
[1746802734310,0.26295773,635.52,634.36,0.31527839]
[1746802735512,0.53698535,635.54,634.36,0.31527839]
[1746802735707,0.26295773,635.51,634.36,0.31527839]
[1746802735907,0.26295773,635.53,634.37,0.414]
[1746802737813,0.26295773,635.53,634.39,0.31526348]
[1746802738310,0.27403409,635.52,634.39,0.31526348]
[1746802738616,0.26295773,635.51,634.39,0.31526348]
[1746802739311,0.26295773,635.54,634.39,0.31526348]
[1746802741010,0.685,635.53,634.39,0.31526348]
[1746802741316,0.26295773,635.52,634.39,0.31526348]
[1746802742416,0.685,635.53,634.39,0.31526348]
[1746802743711,0.685,635.53,634.4,0.534]
[1746802745417,0.685,635.53,634.42,0.31524857]
[1746802746117,0.26312259,635.52,634.42,0.31524857]
[1746802746814,0.685,635.53,634.42,0.31524857]
[1746802750620,0.373,635.52,634.42,0.31524857]
[1746802755128,0.26297334,635.51,634.42,0.31524857]
[1746802756326,0.2740643,635.5,634.42,0.31524857]
[1746802756525,0.2740643,635.5,634.42,0.74824857]
[1746802756725,0.26297334,635.49,634.42,0.74824857]
[1746802762142,0.26297334,635.51,634.42,0.74824857]
[1746802762344,0.27407725,635.48,634.42,0.74824857]
[1746802762542,0.26297334,635.47,634.42,0.74824857]
[1746802763741,0.26297334,635.46,634.42,0.74824857]
[1746802763939,0.26297334,635.47,634.42,0.74824857]
[1746802765136,0.26297334,635.51,634.42,0.74824857]
[1746802765339,0.27407725,635.46,634.42,0.74824857]
[1746802765537,0.26297334,635.45,634.42,0.74824857]
[1746802767245,0.79997334,635.45,634.42,0.74824857]
[1746802767543,0.26297334,635.44,634.42,0.74824857]
[1746802768243,0.27408481,635.43,634.42,0.74824857]
[1746802768637,0.26297334,635.42,634.42,0.74824857]
[1746802771237,0.27408481,635.41,634.42,0.74824857]
[1746802771742,0.26297334,635.4,634.42,0.74824857]
[1746802774647,0.537,635.45,634.42,0.74824857]
[1746802781350,0.26313292,635.44,634.42,0.74824857]
[1746802782958,0.537,635.45,634.42,0.74824857]
[1746802783156,0.373,635.44,634.42,0.74824857]
[1746802783853,0.63625766,635.44,634.42,0.74824857]
[1746802784258,0.26325766,635.43,634.42,0.74824857]
[1746802786458,0.373,635.44,634.42,1.26524857]
[1746802790361,0.26318513,635.43,634.42,1.26524857]
[1746802792059,0.373,635.44,634.42,1.26524857]
[1746802792455,0.26318198,635.43,634.42,1.26524857]
[1746802792957,0.45,635.42,634.42,1.26524857]
[1746802793461,0.26318198,635.41,634.42,1.26524857]
[1746802797964,0.45,635.42,634.42,1.26524857]
[1746802797965,0.373,635.4,634.42,1.26524857]
[1746802798364,0.26316073,635.39,634.42,1.26524857]
[1746802799769,0.373,635.4,634.42,1.26524857]
[1746802800066,0.26313712,635.39,634.42,1.26524857]
[1746802800967,0.373,635.4,634.42,1.26524857]
[1746802801163,0.26316,635.39,634.42,1.26524857]
[1746802806067,0.373,635.4,634.42,1.26524857]
[1746802811969,0.45,635.42,634.42,1.26524857]
[1746802814874,0.27394564,635.95,634.42,1.26524857]
[1746802815177,0.2632477,635.94,634.42,1.26524857]
[1746802815471,0.27394564,635.95,634.42,1.26524857]
[1746802815874,0.2632386,635.94,634.42,1.26524857]
[1746802816271,0.2632386,635.94,634.42,0.83224857]
[1746802819171,0.27392731,635.93,634.42,0.83224857]
[1746802820674,0.2632386,635.92,634.42,0.83224857]
[1746802821074,0.2632386,635.91,634.42,0.83224857]
[1746802821375,0.2632386,635.92,634.42,0.83224857]
[1746802821676,0.27392731,635.93,634.42,0.83224857]
[1746802821976,0.26311079,635.92,634.42,0.83224857]
[1746802822278,0.26311079,635.91,634.42,0.83224857]
[1746802822477,0.53703918,635.91,634.42,0.83224857]
[1746802822677,0.27392839,635.91,634.42,0.83224857]
[1746802822976,0.26311079,635.9,634.42,0.83224857]
[1746802823272,0.26311079,635.89,634.42,0.83224857]
[1746802823771,0.26311079,635.88,634.42,0.83224857]
[1746802824171,0.26311079,635.87,634.42,0.83224857]
[1746802824471,0.26311079,635.9,634.42,0.83224857]
[1746802828276,0.27391977,635.89,634.42,0.83224857]
[1746802828476,0.26311079,635.88,634.42,0.83224857]
[1746802829881,0.27391977,635.89,634.42,0.83224857]
[1746802829882,0.26311079,635.87,634.42,0.83224857]
[1746802830182,0.26311079,635.88,634.42,0.83224857]
[1746802830985,0.26311079,635.87,634.42,0.83224857]
[1746802831285,0.27388959,635.87,634.42,0.83224857]
[1746802831584,0.26311079,635.86,634.42,0.83224857]
[1746802831785,0.27388959,635.87,634.42,0.83224857]
[1746802832080,0.26307605,635.86,634.42,0.83224857]
[1746802834588,0.27385618,635.97,634.42,0.83224857]
[1746802834886,0.26307605,636.2,634.42,0.83224857]
[1746802835089,0.26307605,635.96,634.42,0.83224857]
[1746802835487,0.26307605,636.2,634.42,0.83224857]
[1746802835688,0.27384756,636.01,634.42,0.83224857]
[1746802836083,0.26307605,636.26,634.42,0.83224857]
[1746802836287,0.26307605,636.0,634.42,0.83224857]
[1746802836988,0.27384109,636.01,634.42,0.83224857]
[1746802837188,0.26307605,636.0,634.42,0.83224857]
[1746802840290,0.27387126,635.99,634.42,0.83224857]
[1746802840489,0.26307605,635.98,634.42,0.83224857]
[1746802842392,0.27387126,635.99,634.42,0.83224857]
[1746802842692,0.26344245,635.98,634.42,0.83224857]
[1746802843192,0.27389713,635.97,634.42,0.83224857]
[1746802843492,0.26344245,635.96,634.42,0.83224857]
[1746802846295,0.27387558,635.95,634.42,0.83224857]
[1746802846797,0.26344245,635.94,634.42,0.83224857]
[1746802849300,0.27389282,635.93,634.42,0.83224857]
[1746802849798,0.26344245,635.92,634.42,0.83224857]
[1746802854205,0.27389282,635.93,634.42,0.83224857]
[1746802854605,0.26348198,635.92,634.42,0.83224857]
[1746802855307,0.26348198,635.91,634.42,0.83224857]
[1746802855501,0.26348198,635.9,634.42,0.83224857]
[1746802856005,0.26348198,635.89,634.42,0.83224857]
[1746802856606,0.26348198,635.88,634.42,0.83224857]
[1746802856802,0.26348198,635.9,634.42,0.83224857]
[1746802858308,0.27388528,635.89,634.42,0.83224857]
[1746802858703,0.27388528,635.89,634.43,0.28939576]
[1746802858904,0.26348198,635.88,634.43,0.28939576]
[1746802859105,0.26348198,635.88,634.45,0.31523366]
[1746802861309,0.26348198,636.01,634.46,0.28936171]
[1746802861904,0.26348198,636.01,634.47,0.576]
[1746802862205,0.26348198,636.01,634.48,0.28936171]
[1746802862409,0.26348198,636.01,634.5,0.31520882]
[1746802864212,0.26348198,636.01,634.51,0.28931737]
[1746802864712,0.26348198,636.13,634.53,0.31519392]
[1746802865208,0.27381955,636.14,634.53,0.31519392]
[1746802865612,0.26368512,636.13,634.53,0.31519392]
[1746802865912,0.27381955,636.14,634.53,0.31519392]
[1746802866308,0.26355341,636.13,634.53,0.31519392]
[1746802867212,0.26355341,636.15,634.54,0.28926558]
[1746802867607,0.26355341,636.15,634.56,0.31517902]
[1746802867807,0.26355341,636.15,634.57,0.28926558]
[1746802868107,0.26355341,636.15,634.59,0.31516412]
[1746802868313,0.26355341,636.15,634.6,0.28926558]
[1746802868511,0.26355341,636.15,634.62,0.31514922]
[1746802868808,0.26355341,636.15,634.63,0.28926558]
[1746802869112,0.26355341,636.15,634.65,0.31513432]
[1746802869611,0.26355341,636.15,634.66,0.28926558]
[1746802869813,0.26355341,636.15,634.68,0.31511943]
[1746802870216,0.364,636.16,634.68,0.31511943]
[1746802870413,0.26348266,636.15,634.69,0.28924216]
[1746802871125,0.26348266,636.17,634.69,0.28924216]
[1746802871727,0.26348266,636.17,634.68,0.31511943]
[1746802873325,0.27382816,636.16,634.68,0.31511943]
[1746802873726,0.26348266,636.15,634.68,0.31511943]
[1746802876423,0.27384109,636.14,634.68,0.31511943]
[1746802876826,0.26348266,636.13,634.68,0.31511943]
[1746802879230,0.26348266,636.17,634.68,0.31511943]
[1746802879429,0.2738217,636.12,634.68,0.31511943]
[1746802880025,0.26348266,636.11,634.68,0.31511943]
[1746802882331,0.27386372,636.1,634.68,0.31511943]
[1746802882626,0.26348266,636.09,634.68,0.31511943]
[1746802890936,0.6,636.18,634.68,0.31511943]
[1746802891336,0.26362936,636.17,634.69,0.28908368]
[1746802891529,0.26362936,636.18,634.71,0.31510453]
[1746802892036,0.26362936,636.18,634.72,0.28908368]
[1746802892238,0.364,636.19,634.72,0.28908368]
[1746802893539,0.27369895,636.57,634.72,0.28908368]
[1746802893940,0.26353652,636.56,634.71,0.31510453]
[1746802894941,0.61,636.55,634.71,0.31510453]
[1746802895142,0.61,636.55,634.72,0.28917163]
[1746802895543,0.26353652,636.54,634.72,0.28917163]
[1746802896543,0.362,636.53,634.72,0.28917163]
[1746802896939,0.26353652,636.52,634.72,0.28917163]
[1746802897249,0.26353652,636.51,634.72,0.28917163]
[1746802897543,0.26353652,636.5,634.72,0.28917163]
[1746802897843,0.362,636.53,634.71,0.31510453]
[1746802898144,0.26333795,636.52,634.71,0.31510453]
[1746802898641,0.26333795,636.52,634.72,0.384]
[1746802900546,0.26333795,636.52,634.73,0.512]
[1746802901346,0.27372693,636.51,634.73,0.512]
[1746802902041,0.26333795,636.5,634.74,0.28920554]
[1746802902348,0.26333795,636.5,634.76,0.31507971]
[1746802903050,0.26333795,636.5,634.77,0.28919595]
[1746802903252,0.26333795,636.5,634.79,0.31506482]
[1746802903745,0.26333795,636.5,634.8,0.2891838]
[1746802904255,0.26333795,636.5,634.79,0.31506482]
[1746802906246,0.26333795,636.52,634.79,0.31506482]
[1746802906444,0.27373662,636.49,634.79,0.31506482]
[1746802907050,0.26333795,636.48,634.79,0.31506482]
[1746802909948,0.27373662,636.49,634.79,0.31506482]
[1746802910353,0.26324515,636.48,634.79,0.31506482]
[1746802911254,0.26324515,636.47,634.79,0.31506482]
[1746802911547,0.26324515,636.46,634.79,0.31506482]
[1746802912254,0.26324515,636.45,634.79,0.31506482]
[1746802912454,0.537055,636.45,634.79,0.31506482]
[1746802912754,0.27380985,636.45,634.79,0.31506482]
[1746802913154,0.26313704,636.44,634.79,0.31506482]
[1746802913453,0.26313704,636.43,634.79,0.31506482]
[1746802914458,0.26313704,636.42,634.79,0.31506482]
[1746802914855,0.26313704,636.41,634.79,0.31506482]
[1746802915154,0.26313704,636.4,634.79,0.31506482]
[1746802915358,0.5369749,636.4,634.79,0.31506482]
[1746802915655,0.26313704,636.39,634.79,0.31506482]
[1746802916054,0.26313704,636.38,634.79,0.31506482]
[1746802916357,0.26313704,636.37,634.79,0.31506482]
[1746802916757,0.26313704,636.36,634.79,0.31506482]
[1746802916955,0.26313704,636.35,634.79,0.31506482]
[1746802917351,0.26313704,636.34,634.79,0.31506482]
[1746802917654,0.26313704,636.33,634.79,0.31506482]
[1746802917953,0.26313704,636.32,634.79,0.31506482]
[1746802918358,0.26313704,636.31,634.79,0.31506482]
[1746802918559,0.27383786,636.4,634.79,0.31506482]
[1746802918859,0.2628888,636.39,634.79,0.31506482]
[1746802919259,0.2628888,636.38,634.79,0.31506482]
[1746802919559,0.6258888,636.38,634.79,0.31506482]
[1746802919858,0.2628888,636.37,634.79,0.31506482]
[1746802920159,0.2628888,636.36,634.79,0.31506482]
[1746802920960,0.2628888,636.35,634.79,0.31506482]
[1746802921152,0.2628888,636.34,634.79,0.31506482]
[1746802921559,0.2628888,636.33,634.79,0.31506482]
[1746802922261,0.2628888,636.32,634.79,0.31506482]
[1746802922462,0.2628888,636.32,634.79,0.79106482]
[1746802922755,0.2628888,636.31,634.79,0.79106482]
[1746802923155,0.2628888,636.3,634.79,0.79106482]
[1746802923658,0.2628888,636.29,634.79,0.79106482]
[1746802923968,0.2628888,636.28,634.79,0.79106482]
[1746802924361,0.2628888,636.27,634.79,0.79106482]
[1746802924665,0.2628888,636.26,634.79,0.79106482]
[1746802924962,0.2628888,636.25,634.79,0.79106482]
[1746802925261,0.2628888,636.24,634.79,0.79106482]
[1746802925659,0.8038888,636.23,634.79,0.79106482]
[1746802926167,0.2628888,636.22,634.79,0.79106482]
[1746802926760,0.2628888,636.21,634.79,0.79106482]
[1746802927166,0.2628888,636.2,634.79,0.79106482]
[1746802927566,0.541,636.23,634.79,0.79106482]
[1746802927766,0.26284148,636.22,634.79,0.79106482]
[1746802928163,0.26284148,636.21,634.79,0.79106482]
[1746802928470,0.26284148,636.2,634.79,0.79106482]
[1746802928868,0.26284148,636.19,634.79,0.79106482]
[1746802929270,0.26284148,636.18,634.79,0.79106482]
[1746802929671,0.26284148,636.17,634.79,0.79106482]
[1746802929967,0.26284148,636.16,634.79,0.79106482]
[1746802930574,0.26284148,636.15,634.79,0.79106482]
[1746802930767,1.96772662,636.12,634.79,0.79106482]
[1746802931076,0.26284148,636.11,634.79,0.79106482]
[1746802931376,0.26284148,636.1,634.79,0.79106482]
[1746802931675,0.26284148,636.09,634.79,0.79106482]
[1746802931971,1.96772662,636.12,634.79,0.79106482]
[1746802932170,0.26291192,636.11,634.79,0.79106482]
[1746802932471,0.31442091,636.09,634.79,0.79106482]
[1746802933277,0.26291192,636.08,634.79,0.79106482]
[1746802933577,0.31443574,636.06,634.79,0.79106482]
[1746802934076,0.26291192,636.05,634.79,0.79106482]
[1746802934277,0.57735755,636.04,634.79,0.79106482]
[1746802934577,0.31445057,636.03,634.79,0.79106482]
[1746802934771,0.58849005,636.03,634.79,0.79106482]
[1746802935079,0.85140197,636.03,634.79,0.79106482]
[1746802935377,0.26291192,636.02,634.79,0.79106482]
[1746802935873,0.57737238,636.01,634.79,1.28306482]
[1746802936177,0.26291192,636.0,634.79,1.28306482]
[1746802936373,0.53692659,636.0,634.79,1.28306482]
[1746802936578,0.57738227,635.99,634.79,1.28306482]
[1746802936776,0.26291192,635.98,634.79,1.28306482]
[1746802937176,0.62591192,635.97,634.79,1.28306482]
[1746802937377,0.26291192,635.96,634.79,1.28306482]